Cogmind - Beta 17 @@@ ROGUE MODE // 2026.08.18 @ 21:20:55 Player: HorseLips Result: Destroyed by D-53 Grenadier with Mini Grenade Launcher Performance ------------- Evolutions (1) 500 Regions Visited (3) 600 Robots Destroyed (45) 225 Value Destroyed (900) 900 Prototype IDs (0) 0 Alien Tech Used (0) 0 Bonus (-110) -110 TOTAL SCORE: 2115 Bonus ------- Friendly Fire -110 Cogmind --------- Core Integrity 0/400 Matter 300/300 Energy 100/100 System Corruption 2% Temperature Cool (0) Movement Core (150) Ox2 Location -9/Mines Parts ------- > --- POWER (2) -------- (None) > --- PROPULSION (2) --- (None) > --- UTILITY (3) ------ Large Storage Unit Weight Redist. System Targeting Computer > --- WEAPON (2) ------- (None) > --- INVENTORY (15) --- Large Matter Pod (150) Visual Processing Unit Medium Laser Light Assault Rifle Light Assault Rifle Autogun Grenade Launcher Grenade Launcher Stasis Trap (100%) Stasis Trap (100%) Stasis Trap (100%) Peak State ------------ > --- POWER ------------ Improved Ion Engine Improved Ion Engine > --- PROPULSION ------- Light Treads Light Treads > --- UTILITY ---------- Heat Sink Large Storage Unit Large Matter Pod > --- WEAPON ----------- EM Shotgun EM Shotgun > --- INVENTORY -------- Improved Ion Engine Improved Ion Engine Wheel Compact Wheel Weight Redist. System Weight Redist. System Visual Processing Unit EM Shotgun EM Shotgun Medium Laser Light Assault Rifle Light Assault Rifle Grenade Launcher Grenade Launcher [Rating: 15] Favorites ----------- Power Improved Ion Engine Engine Improved Ion Engine Power Core Light Nuclear Core Propulsion Light Treads Treads Light Treads Leg Aluminum Leg Wheel Armored Wheel Utility Large Storage Unit Device Heat Sink Storage Large Storage Unit Processor Targeting Computer Weapon EM Shotgun Energy Gun EM Shotgun Ballistic Gun Assault Rifle Launcher Grenade Launcher Build | -11 -10 -9 -9 ------- Run | Yrd Mat Mat Min Slots Evolved 2 | . . 2 . Power 1 | . . 1 . Propulsion . | . . . . Utility 1 | . . 1 . Weapon . | . . . . Parts Attached 34 | 8 11 8 7 Power 6 | 1 2 1 2 Engine 5 | 1 1 1 2 Core 1 | . 1 . . Reactor . | . . . . Propulsion 8 | 4 . 3 1 Treads 2 | 2 . . . Leg 2 | 2 . . . Wheel 4 | . . 3 1 Hover . | . . . . Flight . | . . . . Utility 8 | 1 3 2 2 Device 2 | . . 1 1 Storage 5 | 1 3 1 . Processor 1 | . . . 1 Hackware . | . . . . Protection . | . . . . Artifact . | . . . . Weapon 12 | 2 6 2 2 Energy Gun 6 | 1 3 2 . Energy Cannon . | . . . . Ballistic Gun 4 | 1 1 . 2 Ballistic Cannon . | . . . . Launcher 2 | . 2 . . Special Weapon . | . . . . Impact Weapon . | . . . . Slashing Weapon . | . . . . Piercing Weapon . | . . . . Special Melee Weapon . | . . . . Unidentified Prototypes . | . . . . Parts Lost 19 | . 1 6 12 Power 4 | . . . 4 Propulsion 6 | . . 3 3 Utility 2 | . . . 2 Weapon 7 | . 1 3 3 Highest Loss Streak 10 | . 1 3 10 To Critical Strikes . | . . . . Average Backups 11 | 6 10 13 10 Power 1 | 1 2 1 1 Propulsion 2 | 3 3 2 . Utility 2 | . 1 3 2 Weapon 4 | . 3 6 6 Tool/Special . | . . . . Unused Backups 10 | . 5 2 3 Power 5 | . 5 . . Propulsion . | . . . . Utility 3 | . . 2 1 Weapon 2 | . . . 2 Tool/Special . | . . . . Average Slot Usage (%) 95 | . 95 97 91 Engine 15 | . 9 22 20 Core 2 | . 4 . . Treads 20 | . 28 18 1 Wheel 3 | . . 2 17 Device 5 | . . 10 10 Storage 23 | . 26 22 19 Energy Gun 13 | . 11 20 . Ballistic Gun 7 | . 10 . 19 Launcher 1 | . 3 . . Peak Build Rating 15 | 6 11 15 15 Average Rating 10 | 4 8 14 14 On Entrance 7 | . 6 11 13 Avg Prop Armor Cover (%) 17 | 17 . . . Naked Turns . | . . . . Heaviest Build 51 | 12 51 44 44 Greatest Support 40 | 40 40 40 28 Greatest Overweight (x) 4 | 1 1 4 2 Average Overweight (x) . | . . 1 1 Largest Inventory Capacity 15 | 8 15 15 15 Average Capacity 14 | 7 14 15 15 Most Carried 15 | 8 15 15 14 Average Carried 11 | 6 10 13 12 Final Capacity 15 | 8 15 15 15 Final Carried 15 | 8 13 15 11 Class Distribution -------------------- 100% | Mutant Dominant Class ---------------- Mutant | -10/Materials Mutant | -9/Materials Mutant | -9/Mines Resources | -11 -10 -9 -9 ----------- Run | Yrd Mat Mat Min Matter Collected 975 | 275 330 332 38 Remotely . | . . . . Salvage Created 1575 | 88 520 823 144 Parts 87 | 3 31 47 6 Haulers Intercepted . | . . . . Recyclers Shooed 3 | 1 1 1 . Parts Field Recycled . | . . . . Retrieved Matter . | . . . . Parts Self-Destructed . | . . . . Prevented . | . . . . Parts Restored . | . . . . Kills | -11 -10 -9 -9 ------- Run | Yrd Mat Mat Min Combat Hostiles Destroyed 35 | . 13 15 7 Guns 30 | . 12 11 7 AOE 5 | . 1 4 . Classes Destroyed 11 | 2 2 5 2 Worker 2 | . . 2 . Builder 1 | . . 1 . Tunneler 2 | 1 1 . . Recycler 4 | 1 1 2 . Operator 1 | . . 1 . Watcher 3 | . . 3 . Swarmer 14 | . 5 6 3 Grunt 16 | . 8 8 . Sentry 1 | . . 1 . Assembled 4 | . . . 4 Guerrilla 1 | . . . 1 Best Kill Streak 5 | 2 3 5 3 Combat Bots Only 5 | . 3 5 3 Max Kills in Single Turn 2 | 1 2 2 2 Gunslinging 1 | . . 1 1 Exploded 2 | . 1 2 . Melee . | . . . . Uniques/NPCs Destroyed . | . . . . Combat | -11 -10 -9 -9 -------- Run | Yrd Mat Mat Min Hostile Shots Fired 200 | . 83 74 43 Missed 56 | . 26 24 6 Hits 144 | . 57 50 37 Melee 12 | . . . 12 Projectile 132 | . 57 50 25 AOE 13 | . . . 13 Critical Strikes 4 | . 4 . . Damage Taken 2182 | . 606 619 957 Core 553 | . 149 169 235 Absorbed by Shields . | . . . . Core Remaining (%) 70 | 100 40 . . Volleys Fired 112 | 8 41 42 21 Largest 2 | 2 2 2 2 Hottest 90 | 60 90 90 68 Shots Fired 202 | 16 72 72 42 Gun 198 | 16 68 72 42 Cannon . | . . . . Launcher 4 | . 4 . . Special . | . . . . Kinetic 85 | 8 36 . 41 Thermal . | . . . . Explosive 4 | . 4 . . Electromagnetic 113 | 8 32 72 1 Robot Hit Streak 8 | 5 6 8 5 Robot Miss Streak 8 | 2 3 8 4 Penetration Max . | . . . . Secondary Targets 7 | . 2 3 2 Max Gunslinging Chain 1 | . 1 1 1 Shots Hit Robots 138 | 11 46 60 21 Core Hits 78 | 3 26 36 13 Critical Kills 2 | . 1 . 1 Critical Parts Destroyed 1 | . 1 . . Critical Strikes 4 | . 3 . 1 Destroy 3 | . 2 . 1 Corrupt 1 | . 1 . . Melee Attacks . | . . . . Impact . | . . . . Slashing . | . . . . Piercing . | . . . . Sneak Attacks . | . . . . Combat Hostiles . | . . . . Follow-up Attacks . | . . . . Damage Inflicted 2351 | 138 842 998 373 Guns 1919 | 138 581 827 373 Cannons . | . . . . Explosions 432 | . 261 171 . Melee . | . . . . Ramming . | . . . . Kinetic 731 | 47 311 . 373 Thermal 210 | . 39 171 . Explosive 222 | . 222 . . Electromagnetic 1188 | 91 270 827 . Impact . | . . . . Slashing . | . . . . Piercing . | . . . . Highest Corruption 2 | . . . 2 Average Corruption 2 | . . . 2 Corruption Purged . | . . . . Corruption Blocked . | . . . . Overload Shots . | . . . . Overflow Damage . | . . . . Projectiles . | . . . . Explosions . | . . . . Melee . | . . . . Knockbacks . | . . . . Impact . | . . . . Kinetic . | . . . . Secondary . | . . . . Self-Inflicted Damage 73 | . . 73 . Shots 2 | . . 2 . Rammed . | . . . . Targets Rammed . | . . . . Kicked . | . . . . Crushed . | . . . . Highest Temperature 196 | . 196 126 38 Average Temperature 34 | . 50 28 18 Received Heat Transfer 471 | . 270 201 . Siege Activations . | . . . . Martial Activations . | . . . . Shielding Activations . | . . . . Robots Disrupted 1 | . . 1 . Combat Hostiles 1 | . . 1 . Robots Corrupted 1 | . . 1 . Combat Hostiles . | . . . . Parts Fried 2 | . . 2 . Impact Corruptions . | . . . . Robots Melted . | . . . . Combat Hostiles . | . . . . Parts Melted 1 | . . 1 . Heat Transferred 250 | . 100 150 . Parts Sabotaged . | . . . . Parts Stolen . | . . . . Parts Stripped . | . . . . Power Chain Reactions 5 | . 1 4 . Alert | -11 -10 -9 -9 ------- Run | Yrd Mat Mat Min Maximum Alert Level 1 | . . 1 . Low Security (%) 98 | 100 100 94 100 Level 1 1 | . . 5 . Level 2 . | . . . . Level 3 . | . . . . Level 4 . | . . . . Level 5 . | . . . . High Security . | . . . . Max Security . | . . . . Peak Influence 244 | 10 114 244 141 Initial 91 | . . 32 91 Average 42 | . 41 42 73 Influence Increases 913 | 10 345 488 70 Destroy 0b10 Robot/C 620 | . 260 300 60 Destroy 0b10 Robot/NC 65 | 10 10 45 . Destroy Leader 116 | . 50 56 10 Disable Machine 15 | . . 15 . Destroy Structure 67 | . 25 42 . Lose Combat Pursuer 30 | . . 30 . Influence Decreases 913 | 10 267 330 306 Entered New Map 191 | . . 46 145 Time Decay 626 | 10 257 249 110 Lost Part 96 | . 10 35 51 Squads Dispatched 1 | . . 1 . Investigation . | . . . . Extermination . | . . . . Reinforcement 1 | . . 1 . Assault . | . . . . Garrison . | . . . . Intercept . | . . . . Searches Triggered . | . . . . Construction Impeded . | . . . . Haulers Reinforced . | . . . . Active Scanning Responses . | . . . . Cargo Convoy Interrupts . | . . . . Stealth | -11 -10 -9 -9 --------- Run | Yrd Mat Mat Min Distress Signals 2 | . . 2 . Communications Jammed . | . . . . Distress Signals . | . . . . Times Spotted 57 | . 14 22 21 Peak Tracking Total 20 | . 3 4 20 Tactical Retreats 2 | . . 1 1 Traps | -11 -10 -9 -9 ------- Run | Yrd Mat Mat Min Traps Triggered . | . . . . Indirectly . | . . . . Trap Hack Attempts . | . . . . Triggered . | . . . . Disarmed . | . . . . Reprogrammed . | . . . . Reused . | . . . . Traps Extracted . | . . . . Installed . | . . . . Triggered . | . . . . Most Traps Carried 3 | . . . 3 Machines | -11 -10 -9 -9 ---------- Run | Yrd Mat Mat Min Machines Disabled 1 | . . 1 . Max in Single Turn 1 | . . 1 . Machines Repaired . | . . . . Machines Dismantled . | . . . . Machines Sabotaged . | . . . . Overloaded Fab Kills . | . . . . Hacking | -11 -10 -9 -9 --------- Run | Yrd Mat Mat Min Machines Accessed . | . . . . Terminals . | . . . . Fabricators . | . . . . Repair Stations . | . . . . Recycling Units . | . . . . Scanalyzers . | . . . . Garrison Access . | . . . . Total Hacks . | . . . . Successful . | . . . . Failed . | . . . . Catastrophic . | . . . . Database Lockouts . | . . . . Manual . | . . . . Terminals . | . . . . Fabricators . | . . . . Repair Stations . | . . . . Recycling Units . | . . . . Scanalyzers . | . . . . Garrison Access . | . . . . Terminal Hacks . | . . . . Fabricator Hacks . | . . . . Repair Station Hacks . | . . . . Recycling Unit Hacks . | . . . . Scanalyzer . | . . . . Garrison Access Hacks . | . . . . Unauthorized Hacks . | . . . . Terminals . | . . . . Fabricators . | . . . . Repair Stations . | . . . . Recycling Units . | . . . . Scanalyzers . | . . . . Garrison Access . | . . . . Data Cores Recovered . | . . . . Used . | . . . . Hacking Detections . | . . . . Full Trace Events . | . . . . Feedback Events . | . . . . Feedback Blocked . | . . . . Robot Schematics Acquired . | . . . . Robots Built . | . . . . Authchips . | . . . . Time . | . . . . Total Robot Build Rating . | . . . . Part Schematics Acquired . | . . . . Parts Built . | . . . . Authchips . | . . . . Time . | . . . . Total Part Build Rating . | . . . . Part Studies Acquired . | . . . . Parts Repaired . | . . . . Time . | . . . . Parts Recycled . | . . . . Recycled Matter . | . . . . Retrieved Matter . | . . . . Retrieved Components . | . . . . Parts Scanalyzed . | . . . . Part Schematics Acquired . | . . . . Parts Damaged . | . . . . Bothacking | -11 -10 -9 -9 ------------ Run | Yrd Mat Mat Min Used RIF Installer . | . . . . Robots Hacked . | . . . . Non-combat . | . . . . Combat . | . . . . Robot Hacks Applied . | . . . . Relay Couplers Released . | . . . . Fabnet Peak Effective % . | . . . . Robots Rewired . | . . . . Allies Hacked . | . . . . Hacks Repelled . | . . . . Allies | -11 -10 -9 -9 -------- Run | Yrd Mat Mat Min Total Allies . | . . . . Largest Group . | . . . . Highest-Rated Group . | . . . . Highest-Rated Ally . | . . . . Total Orders . | . . . . Ally Attacks . | . . . . Total Damage . | . . . . Kills . | . . . . Allies Corrupted . | . . . . Allies Melted . | . . . . Intel | -11 -10 -9 -9 ------- Run | Yrd Mat Mat Min Active Infowar (turns) . | . . . . Robot Analysis Total . | . . . . Derelict Logs Recovered 1 | . . . 1 Drone Launches . | . . . . Drone Recoveries . | . . . . Exploration | -11 -10 -9 -9 ------------- Run | Yrd Mat Mat Min Turns Passed 2272 | 182 1049 778 263 Spaces Moved 972 | 103 424 290 155 Core 25 | 22 . . 3 Treads 737 | 68 424 234 11 Legs 13 | 13 . . . Wheels 197 | . . 56 141 Hover . | . . . . Flight . | . . . . Fastest Speed 50 | 50 160 100 110 Average Speed 189 | 132 210 217 120 Slowest Speed 240 | 160 240 240 240 Overloaded Moves . | . . . . Propulsion Burnouts . | . . . . Robots Hopped . | . . . . Potential Cave-ins . | . . . . Cave-ins Triggered . | . . . . Exploration Rate (%) 34 | 4 54 34 46 Regions Visited 3 Branch Regions 1 Pre-discovered Areas . | . . . . Known Exits Taken . | . . . . Unknown Exits Taken 3 | 1 1 1 . Scrap Searched . | . . . . Spaces Dug . | . . . . Terrain Destroyed 74 | . 32 42 . Melee . | . . . . Projectile . | . . . . AOE 74 | . 32 42 . Terrain Rammed . | . . . . Walls Destroyed . | . . . . Machines Disabled . | . . . . Actions | -11 -10 -9 -9 --------- Run | Yrd Mat Mat Min Total 1216 | 131 520 368 197 Wait 30 | . 6 14 10 Move 969 | 102 423 289 155 Hop . | . . . . Pick Up 39 | 8 17 11 3 Fast Attach 12 | 7 4 . 1 Attach 23 | 2 6 8 7 Detach 12 | 3 8 1 . Swap 1 | . 1 . . Drop 18 | 1 14 3 . Fire 112 | 8 41 42 21 Melee . | . . . . Ram . | . . . . Kick . | . . . . Crush . | . . . . Escape Stasis . | . . . . Rewire . | . . . . Trap . | . . . . Miscellaneous . | . . . . Route ------- -11/Scrapyard -10/Materials (discovered 3 exits: *Mat x2 / [*Sub]) -9/Materials -9/Mines (discovered 1 exit: [*Mat]) History --------- Turn | Location | Event 14 | -11/Scrapyard | Discovered new exit (range 15) 183 | -11/Scrapyard | Entered Materials 338 | -10/Materials | Build established: Mutant 458 | -10/Materials | Discovered new exit (range 15) 717 | -10/Materials | Discovered new exit (range 8) 1011 | -10/Materials | Discovered new exit (range 13) 1083 | -10/Materials | Derelicts attacked the area 1095 | -10/Materials | Core integrity fell below 50% 1232 | -10/Materials | Entered another Materials area 1232 | -9/Materials | Evolved 2 slots: Power x1, Utility x1 1829 | -9/Materials | Discovered new exit (range 6) 1919 | -9/Materials | Lost 3 parts (2n1w) 2010 | -9/Materials | Entered Mines 2066 | -9/Mines | Found a hidden stash of uninstalled traps 2098 | -9/Mines | Learned 4 Materials zone layouts 2184 | -9/Mines | Assembled infested the area 2189 | -9/Mines | Assisted by a Guerilla fighting off Assembled 2219 | -9/Mines | Core integrity fell below 50% 2255 | -9/Mines | Discovered new exit (range 11) 2267 | -9/Mines | Core integrity fell below 20% 2273 | -9/Mines | Destroyed by D-53 Grenadier with Mini Grenade Launcher Last Messages --------------- Acquired Targeting Computer. Acquired 12 matter. Autogun destroyed. EXIT=FOUND The unstable cave ceiling collapses. U-05 Engineer lays Concrete. U-05 Engineer builds a Wall. Autogun destroyed. The unstable cave ceiling collapses. Imp. Ion Engine destroyed. U-05 Engineer builds a Wall. as-14217 destroyed. U-05 Engineer builds a Wall. Lgt. Treads destroyed. The unstable cave ceiling collapses. Imp. Ion Engine destroyed. U-05 Engineer builds a Wall. The unstable cave ceiling collapses. Laser Drill disabled. The unstable cave ceiling collapses. Map ----- +----------------------------------------------------+ | | | | | | | | | | | | | | | | | | | | | | | | | | | | | | | | | ????????????????????????????????????????????????? | | ????????????????????????????????????????????????? | | ????????????????????????????????????????????????? | | ????????????????????????????????????????????????? | | ????????????????########????????????????????????? | | ????????????????? #####???????????????????? | | ????????????????? # ##??????????????????? | | ?????????????????"" "" # ##?????????????????? | | ????????????????""" """ ##????????????????? | | ?????????????# """ "" @ #????????????????? | | ?????####????# ##???????????????? | | ????## ##???# """ """ #???????????????? | | ???## #????? """ """ #???????????????? | | ??## #??????""" """ ##??????????????? | | ??# #???# # #??????????????? | | ??# ##?????######## ##?????????????? | | ??# #?????????????# #?????????????? | | ??## ##????????######## dd # # ????? | | ???## ##???????# !%= % t ???? | | ????# ##??????# ##### t % ???? | | ????## ##?????# #???## # # ## ????? | | ?????# #???### ##???#### # ?????? | | ????## #??## ##?????## # ##??????? | | ????# #### #??????? """ ###???????? | | ????# ## #??????? """ ????????? | | ????## ## #??????? """ ## ???????? | | ?????##?## ### #??????? ???????????? | | ?????????## ##??###??????? < ????????????? | | ??????????# ##???????????? ????????????? | | ??????????## ##???????????? ????????????? | | ???????????## #???????????? ???????????? | | ????????????# #???????????? ??????????????? | | ????????????## #????????????#????????????????? | | ????????????## ##????????????????????????????? | +----------------------------------------------------+ Best States ------------- Heat Dissipation 38 Energy Generation 19 Energy Capacity 430 Matter Stores 450 Matter Capacity 450 Sight Range 16 Terrain Scan Density 10 Additional Mass Support 6 Evasion (%) 50 Targeting Accuracy 5 Recoil Reduction 2 Item Schematics ----------------- None Robot Schematics ------------------ None Fabricated ------------ Nothing Repaired ---------- Nothing Studied --------- None Alien Tech Used ----------------- None Achievements -------------- DATA ERROR: Steam Global Achievement% Hunted Organ Harvest There's More Where That Came From Challenges ------------ None Game ------ Seed SpikedSlugGriptreads Manual? 0 Play Time 00:33:19 Cumulative 20.5 hours Start 2026.08.18 @ 20:43:44 End 2026.08.18 @ 21:20:55 Sessions 1 Manual Loads 0 Difficulty Rogue Special Mode None Game No. 37 Rogue 37 Adventurer 0 Explorer 0 Win Type - Total 0 Types 0/0/0/0/0/0/0/0/0/0 Lore% 8 Gallery% 19 Achievement% 10 Wizard Run 0 Options --------- Layout 1 ASCII 0 Keyboard 0 Movement Arrows Keybinds 0 Fullscreen 1 Font 24/Smallcaps Map View 50x35 Zoom Use 0% Tactical HUD 0 Map Filters NONE Filters NONE Steam 1 RUN: a31cd934-6661-47cf-a956-9aba8b9565e6